bitfinex-derivatives/quotes_BTCF0:USTF0_20251115
["timestamp","ask_amount","ask_price","bid_price","bid_amount"]
[1763167161508,0.42908077,94987.0,94986.0,0.06159992]
[1763167162400,0.42908077,94987.0,94986.0,0.16696802]
[1763167163111,0.06828077,94987.0,94986.0,0.16696802]
[1763167163409,0.06828077,94987.0,94986.0,0.002]
[1763167163597,0.06828077,94987.0,94986.0,0.04783]
[1763167163907,0.06828077,94987.0,94986.0,0.002]
[1763167163908,0.18997113,94987.0,94986.0,0.002]
[1763167164305,0.55077113,94987.0,94986.0,0.002]
[1763167164610,0.55077113,94987.0,94986.0,0.04783]
[1763167164805,0.55085975,94987.0,94986.0,0.04783]
[1763167165107,0.19005975,94987.0,94986.0,0.04783]
[1763167165410,0.19005975,94987.0,94986.0,0.02455]
[1763167165610,0.19005975,94987.0,94986.0,0.02355]
[1763167166013,0.19005975,94987.0,94986.0,0.04583]
[1763167166218,0.04487,94985.0,94984.0,0.38335]
[1763167166407,0.06828077,94985.0,94984.0,0.3608]
[1763167166713,0.18339254,94985.0,94984.0,0.38335]
[1763167166906,0.18339254,94985.0,94984.0,0.3608]
[1763167168304,0.04467,94976.0,94975.0,0.00473806]
[1763167168613,0.18390445,94976.0,94975.0,0.00473806]
[1763167169508,0.18390445,94976.0,94975.0,0.00573806]
[1763167169711,0.18390445,94976.0,94975.0,0.00673806]
[1763167171008,0.18390445,94976.0,94975.0,0.02783806]
[1763167171212,0.18390445,94976.0,94975.0,0.05021806]
[1763167171518,0.01545803,94980.0,94975.0,0.05021806]
[1763167171519,0.00219803,94980.0,94979.0,0.04348]
[1763167171818,8.862e-05,94987.0,94986.0,0.1488481]
[1763167172019,8.862e-05,94987.0,94986.0,0.5096481]
[1763167172204,0.00015786,94996.0,94995.0,0.1488382]
[1763167172406,0.00015786,94996.0,94995.0,0.5096382]
[1763167172910,0.05793,95018.0,95017.0,0.1488138]
[1763167173212,0.18529418,95018.0,95017.0,0.1488138]
[1763167173803,0.3608,95039.0,95026.0,0.1053238]
[1763167173804,0.00015786,95027.0,95026.0,0.1053238]
[1763167174010,0.06834301,95027.0,95026.0,0.5096038]
[1763167174215,0.04482786,95027.0,95026.0,0.5096038]
[1763167174411,0.00219803,95030.0,95029.0,0.04348]
[1763167174713,0.04493303,95046.0,95045.0,0.1487828]
[1763167175011,0.12064373,95046.0,95045.0,0.5095828]
[1763167175212,0.16531373,95046.0,95045.0,0.40428]
[1763167175410,0.16531373,95046.0,95040.0,0.00073267]
[1763167175411,0.04467,95041.0,95040.0,0.00073267]
[1763167175605,0.04467,95037.0,95036.0,0.00015786]
[1763167175807,0.06814925,95037.0,95036.0,0.00015786]
[1763167176007,0.18852995,95037.0,95036.0,0.00015786]
[1763167176212,0.1650507,95037.0,95036.0,0.00015786]
[1763167176609,0.54932515,95037.0,95036.0,0.00015786]
[1763167177717,0.19252515,95037.0,95036.0,0.00015786]
[1763167178109,0.1690507,95037.0,95036.0,0.00015786]
[1763167178414,0.1690507,95037.0,95036.0,0.04363786]
[1763167180410,0.1690507,95037.0,95036.0,0.02125786]
[1763167180716,0.1690507,95037.0,95036.0,0.04363786]
[1763167180717,0.004,95037.0,95036.0,0.04363786]
[1763167181106,0.0018018,95037.0,95036.0,0.04363786]
[1763167185018,0.0018018,95037.0,95036.0,0.14895056]
[1763167192937,0.00026303,95046.0,95045.0,0.1487828]
[1763167193125,0.3608,95073.0,95054.0,0.1487728]
[1763167193429,0.00921,95064.0,95054.0,0.3608]
[1763167193638,0.04467,95051.0,95050.0,0.12875647]
[1763167193932,0.1605142,95051.0,95050.0,0.00073267]
[1763167195929,0.1605142,95051.0,95050.0,0.04421267]
[1763167197344,0.1158442,95051.0,95050.0,0.04421267]
[1763167197643,0.159095,95059.0,95050.0,0.00073267]
[1763167197839,0.04614,95057.0,95056.0,0.1517806]
[1763167198234,0.16171364,95057.0,95056.0,0.1517806]
[1763167199140,0.00235589,95060.0,95059.0,0.1517773]
[1763167199342,0.00015786,95060.0,95059.0,0.1517773]
[1763167200031,0.3608,95085.0,95079.0,0.02323]
[1763167200240,0.3608,95085.0,95079.0,0.04649]
[1763167200241,0.08504222,95080.0,95079.0,0.04649]
[1763167200438,0.18118555,95080.0,95079.0,0.04649]
[1763167200943,0.18118555,95080.0,95079.0,0.40729]
[1763167200944,0.02564222,95080.0,95079.0,0.40729]
[1763167201243,0.02344419,95080.0,95079.0,0.40729]
[1763167201442,0.02349292,95086.0,95085.0,0.04649]
[1763167201646,0.02375037,95086.0,95085.0,0.04649]
[1763167201942,0.00026292,95086.0,95085.0,0.04649]
[1763167202140,0.02349292,95086.0,95085.0,0.04649]
[1763167202340,0.00026292,95086.0,95085.0,0.04649]
[1763167203131,0.02749292,95086.0,95085.0,0.04649]
[1763167203344,0.07388761,95086.0,95085.0,0.04649]
[1763167203545,0.04614,95081.0,95080.0,0.00073267]
[1763167203736,0.06962642,95081.0,95080.0,0.00073267]
[1763167203933,0.06962642,95081.0,95070.0,0.12805612]
[1763167203934,0.04614,95072.0,95070.0,0.12805612]
[1763167204335,0.18776921,95072.0,95070.0,0.12878879]
[1763167204539,0.04614,95071.0,95070.0,0.12878879]
[1763167204742,0.06962609,95071.0,95070.0,0.00089043]
[1763167204944,0.18776921,95071.0,95070.0,0.00089043]
[1763167205152,0.18776921,95071.0,95070.0,0.02412043]
[1763167206348,0.16428312,95071.0,95070.0,0.38492043]
[1763167206546,0.14262551,95071.0,95070.0,0.51345553]
[1763167206742,0.001,95071.0,95070.0,0.51345553]
[1763167208048,0.002,95071.0,95070.0,0.51345553]
[1763167209952,0.02297292,95086.0,95085.0,0.1487685]
[1763167210149,0.02297292,95086.0,95085.0,0.5095685]
[1763167210350,0.13407765,95086.0,95085.0,0.5095685]
[1763167210854,0.15584765,95086.0,95085.0,0.5095685]
[1763167211249,0.15784765,95086.0,95085.0,0.5095685]
[1763167211449,0.18131046,95086.0,95085.0,0.5095685]
[1763167211648,0.13683046,95086.0,95085.0,0.5095685]
[1763167212047,0.13883046,95086.0,95085.0,0.5095685]
[1763167213652,0.02772573,95086.0,95085.0,0.5095685]
[1763167216058,0.07220573,95086.0,95085.0,0.5095685]
[1763167219153,0.07220573,95086.0,95085.0,0.3608]
[1763167219361,0.07220573,95086.0,95076.0,0.18756888]
[1763167219362,0.04448,95077.0,95076.0,0.18756888]
[1763167219657,0.04448,95077.0,95070.0,0.40446776]
[1763167219658,0.04448,95071.0,95070.0,0.40446776]
[1763167219860,0.04448,95071.0,95070.0,0.36169043]
[1763167220057,0.18825193,95071.0,95070.0,0.40520043]
[1763167220365,0.18825193,95071.0,95070.0,0.36169043]
[1763167221256,0.18825193,95071.0,95070.0,0.40520043]
[1763167221462,0.001,95077.0,95076.0,0.1487784]
[1763167221660,0.06995902,95077.0,95076.0,0.1487784]
[1763167221865,0.06895902,95077.0,95076.0,0.1487784]
[1763167222162,0.06796578,95077.0,95076.0,0.04351]
[1763167223072,0.06896578,95077.0,95076.0,0.04351]
[1763167223365,0.06996578,95077.0,95076.0,0.04351]
[1763167225659,0.04648,95077.0,95076.0,0.04351]
[1763167226360,0.06999703,95077.0,95076.0,0.04351]
[1763167226560,0.06999703,95077.0,95076.0,0.02166]
[1763167226767,0.06999703,95077.0,95070.0,0.40446776]
[1763167226768,0.04448,95071.0,95070.0,0.40446776]
[1763167226960,0.04448,95071.0,95070.0,0.40520043]
[1763167227361,0.06810087,95071.0,95070.0,0.40520043]
[1763167227762,0.04448,95071.0,95070.0,0.40520043]
[1763167227968,0.04448,95071.0,95070.0,0.38335043]
[1763167227969,0.04548,95071.0,95070.0,0.38335043]
[1763167228264,0.19218504,95071.0,95070.0,0.36169043]
[1763167232270,0.19218504,95071.0,95070.0,0.40655043]
[1763167235772,0.19218504,95071.0,95070.0,0.36169043]
[1763167236273,0.19218504,95071.0,95070.0,0.40655043]
[1763167238272,0.19218504,95071.0,95070.0,0.38329043]
[1763167241069,0.19218504,95071.0,95070.0,0.40655043]
[1763167242373,0.19218504,95071.0,95070.0,0.36169043]
[1763167244175,0.19218504,95071.0,95070.0,0.38329043]
[1763167244371,0.19271504,95071.0,95070.0,0.40655043]
[1763167244686,0.19271504,95071.0,95070.0,0.51182553]
[1763167245081,0.19271504,95071.0,95070.0,0.40655043]
[1763167246183,0.19271504,95071.0,95070.0,0.04575043]
[1763167246783,0.19271504,95071.0,95070.0,0.02249043]
[1763167247370,0.19271504,95071.0,95070.0,0.04575043]
[1763167247575,0.19271504,95071.0,95070.0,0.00089043]
[1763167248383,0.19271504,95071.0,95070.0,0.02249043]
[1763167248582,0.19271504,95071.0,95070.0,0.00089043]
[1763167249979,0.19271504,95071.0,95070.0,0.04575043]
[1763167250178,0.19271504,95071.0,95070.0,0.00089043]
[1763167250384,0.19271504,95071.0,95070.0,0.02249043]
[1763167251285,0.19271504,95071.0,95070.0,0.04575043]
[1763167252786,0.19271504,95071.0,95070.0,0.02249043]
[1763167252981,0.19271504,95071.0,95070.0,0.00089043]
[1763167254193,0.19271504,95071.0,95070.0,0.00015776]
[1763167254394,0.04524,95061.0,95060.0,0.10235806]
[1763167254594,0.04524,95061.0,95055.0,0.3824]
[1763167254595,0.04524,95056.0,95055.0,0.3824]
[1763167254781,0.04524,95056.0,95055.0,0.40566]
[1763167254987,0.06891292,95056.0,95055.0,0.40566]
[1763167255484,0.06891292,95056.0,95055.0,0.04486]
[1763167256190,0.06891292,95056.0,95046.0,0.00015776]
[1763167256191,0.04524,95047.0,95046.0,0.00015776]
[1763167256391,0.04524,95038.0,95037.0,0.10235806]
[1763167256689,0.04524,95038.0,95034.0,0.04486]
[1763167256690,0.04524,95035.0,95034.0,0.04486]
[1763167256888,0.06891633,95035.0,95034.0,0.04486]
[1763167257092,0.18846589,95035.0,95034.0,0.04486]
[1763167257291,0.16478956,95035.0,95034.0,0.04486]
[1763167257794,0.16478956,95035.0,95034.0,0.0216]
[1763167257795,0.18723104,95035.0,95034.0,0.0216]
[1763167257986,0.04412,95031.0,95030.0,0.05841937]
[1763167258387,0.1574124,95031.0,95030.0,0.04561267]
[1763167258791,0.1574124,95031.0,95030.0,0.05849653]
[1763167259193,0.1574124,95031.0,95030.0,0.05949653]
[1763167259590,0.1564124,95031.0,95030.0,0.05949653]
[1763167259791,0.1564124,95031.0,95030.0,0.04661267]
[1763167260295,0.1564124,95031.0,95030.0,0.06052173]
[1763167260794,0.1564124,95031.0,95030.0,0.04761267]
[1763167260997,0.38364,95039.0,95038.0,0.04488]
[1763167261296,0.38364,95039.0,95030.0,0.02486]
[1763167261297,0.04412,95031.0,95030.0,0.02486]
[1763167261498,0.04412,95031.0,95030.0,0.002]
[1763167261797,0.15519918,95031.0,95030.0,0.002]
[1763167262094,0.04412,95026.0,95025.0,2.68e-06]
[1763167262303,0.04412,95008.0,94996.0,0.3608]
[1763167262593,0.1551902,95008.0,95007.0,0.40568]
[1763167262788,0.1551902,95008.0,95007.0,0.38366]
[1763167262789,0.1541902,95008.0,95007.0,0.38366]
[1763167262988,0.04412,95007.0,94998.0,0.11498241]
[1763167263195,0.40499482,95007.0,95000.0,0.00073267]
[1763167263494,0.51968932,95007.0,95000.0,0.00073267]
[1763167263691,0.51968932,95007.0,95006.0,0.02312314]
[1763167264088,0.51868932,95007.0,95006.0,0.02312314]
[1763167264897,0.51868932,95007.0,95006.0,0.04514314]
[1763167267198,0.15788932,95007.0,95006.0,0.04514314]
[1763167269095,0.15788932,95007.0,95006.0,0.02312314]
[1763167269404,0.15788932,95007.0,95006.0,0.00026314]
[1763167271008,0.15788932,95007.0,95006.0,0.15095914]
[1763167271508,0.15788932,95007.0,95006.0,0.00026314]
[1763167272197,0.15788932,95007.0,95006.0,0.02253314]
[1763167272798,0.15788932,95007.0,95006.0,0.04502314]
[1763167272995,0.15788932,95007.0,95006.0,0.00026314]
[1763167274609,0.15788932,95007.0,95006.0,0.04502314]
[1763167274906,0.15788932,95007.0,95006.0,0.02253314]
[1763167275907,0.15788932,95007.0,95006.0,0.00026314]
[1763167276109,0.15788932,95007.0,95006.0,0.02253314]
[1763167276801,0.15788932,95007.0,95006.0,0.04502314]
[1763167277511,0.04319482,95007.0,95006.0,0.04502314]
[1763167279802,0.04419482,95007.0,95006.0,0.04502314]
[1763167280408,0.00107482,95007.0,95006.0,0.04502314]
[1763167280996,0.0128,95025.0,95015.0,0.150096]
[1763167281201,0.3608,95033.0,95029.0,0.1053198]
[1763167281402,0.04423,95031.0,95030.0,0.1500776]
[1763167281616,0.04423,95031.0,95030.0,0.15081027]
[1763167281915,0.16263699,95031.0,95030.0,0.15081027]
[1763167282105,0.16270359,95031.0,95030.0,0.15081027]
[1763167282504,0.16270359,95031.0,95030.0,0.04549267]
[1763167282809,0.16270359,95031.0,95030.0,0.00073267]
[1763167283000,0.04423,95022.0,95021.0,0.00015785]
[1763167283403,0.15949831,95022.0,95021.0,0.00015785]
[1763167284005,0.15949831,95022.0,95021.0,0.04491785]
[1763167284216,0.1828773,95022.0,95021.0,0.04491785]
[1763167284811,0.1828773,95022.0,95021.0,0.02242785]
[1763167285404,0.1838773,95022.0,95021.0,0.02242785]
[1763167285916,0.1838773,95022.0,95021.0,0.04491785]
[1763167286315,0.1838773,95022.0,95021.0,0.15024715]
[1763167287110,0.04557899,95022.0,95021.0,0.15024715]
[1763167288007,0.06860899,95022.0,95021.0,0.15024715]
[1763167288208,0.06840436,95022.0,95021.0,0.15024715]
[1763167288914,0.40503,95022.0,95021.0,0.04491785]
[1763167289114,0.42820488,95022.0,95021.0,0.04491785]
[1763167290224,0.02317488,95022.0,95021.0,0.04491785]
[1763167290713,0.02317488,95022.0,95021.0,0.04502785]
[1763167290714,0.06877488,95022.0,95021.0,0.04502785]
[1763167290918,0.06977488,95022.0,95021.0,0.04502785]
[1763167291213,0.06877488,95022.0,95021.0,0.04502785]
[1763167291618,0.06877488,95022.0,95021.0,0.00015785]
[1763167291923,0.18359596,95022.0,95021.0,0.00015785]
[1763167292807,0.18360894,95022.0,95021.0,0.00015785]
[1763167294121,0.54440894,95022.0,95021.0,0.00015785]
[1763167294317,0.0228,95013.0,95007.0,0.3608]
[1763167294510,0.0456,95008.0,95007.0,0.3608]
[1763167295022,0.0687907,95008.0,95007.0,0.3608]
[1763167296822,0.0687907,95008.0,95000.0,0.20501582]
[1763167296823,0.0456,95007.0,95000.0,0.20501582]
[1763167297024,0.0687907,95007.0,95000.0,0.20574849]
[1763167297217,0.18540921,95007.0,95000.0,0.20574849]
[1763167297617,0.18540921,95007.0,95000.0,0.20501582]
[1763167301623,0.0231907,95007.0,95006.0,0.04613314]
[1763167301827,0.0687907,95007.0,95006.0,0.04613314]
[1763167302924,0.0687907,95007.0,95006.0,0.00026314]
[1763167303627,0.0687907,95007.0,95006.0,0.02353314]
[1763167303816,0.0687907,95007.0,95006.0,0.04613314]
[1763167309028,0.0231907,95007.0,95006.0,0.04613314]
[1763167309330,6.66e-05,95008.0,95007.0,0.1512149]
[1763167309532,0.0456666,95008.0,95007.0,0.04587]
[1763167311237,0.03772886,95030.0,95006.0,0.00126314]
[1763167311238,0.03772886,95031.0,95016.0,0.1512049]
[1763167311424,0.01269,95039.0,95016.0,0.1512049]
[1763167311425,0.02295785,95017.0,95016.0,0.1512049]
[1763167311627,0.04575785,95017.0,95016.0,0.1512049]
[1763167311821,0.02295785,95017.0,95016.0,0.1512049]
[1763167312133,0.00015785,95017.0,95016.0,0.1512049]
[1763167313127,0.02295785,95017.0,95016.0,0.1512049]
[1763167313327,0.02295785,95017.0,95016.0,0.1522049]
[1763167314031,0.02295785,95017.0,95016.0,0.1512049]
[1763167316031,0.02295785,95017.0,95016.0,0.04587]
[1763167316332,0.04575785,95017.0,95016.0,0.04587]
[1763167316535,0.00015785,95017.0,95016.0,0.04587]
[1763167318133,0.00015785,95017.0,95016.0,0.04687]
[1763167319535,0.00015785,95017.0,95016.0,0.04587]
[1763167319731,0.00015785,95017.0,95016.0,0.04687]
[1763167320135,0.02137785,95017.0,95016.0,0.04687]
[1763167320333,0.04387785,95017.0,95016.0,0.04587]
[1763167321528,0.00015785,95017.0,95016.0,0.04587]
[1763167321931,0.04387785,95017.0,95016.0,0.04587]
[1763167322940,0.04387785,95017.0,95016.0,0.001]
[1763167322941,0.15981784,95017.0,95016.0,0.001]
[1763167323643,0.04372,95013.0,95012.0,0.3608]
[1763167323841,0.06679447,95013.0,95012.0,0.3608]
[1763167324041,0.18461673,95013.0,95012.0,0.40667]
[1763167324340,0.18461673,95013.0,95012.0,0.38354]
[1763167324533,0.18461673,95013.0,95012.0,0.3608]
[1763167324932,0.18461673,95013.0,95012.0,0.40667]
[1763167325432,0.18461673,95013.0,95012.0,0.3608]
[1763167326040,0.18461673,95013.0,95010.0,0.00073267]
[1763167326041,0.05647,95011.0,95010.0,0.00073267]
[1763167326238,0.07954447,95011.0,95010.0,0.02347267]
[1763167326442,0.19217864,95011.0,95010.0,0.00073267]
[1763167327242,0.04372,95007.0,95004.0,0.3608]
[1763167327643,0.15569233,95007.0,95004.0,0.3608]
[1763167327944,0.17877012,95007.0,95004.0,0.3608]
[1763167329836,0.17877012,95007.0,95006.0,0.04613314]
[1763167332150,0.00219803,95010.0,95006.0,0.04613314]
[1763167332151,0.00219803,95010.0,95009.0,0.04532]
[1763167332939,0.02434803,95010.0,95009.0,0.04532]
[1763167333147,0.04631803,95010.0,95009.0,0.04532]
[1763167341450,0.04631803,95010.0,95009.0,0.1506627]
[1763167341747,0.04631803,95010.0,95006.0,0.00026314]
[1763167341748,0.05911803,95010.0,95006.0,0.00026314]
[1763167341960,0.04412,95007.0,95006.0,0.00026314]
[1763167342252,0.18014433,95007.0,95006.0,0.00026314]
[1763167344044,0.18114433,95007.0,95006.0,0.00026314]
[1763167345455,0.18114433,95007.0,95000.0,0.10248198]
[1763167345456,0.04412,95001.0,95000.0,0.10248198]
[1763167345648,0.04631803,95000.0,94999.0,0.3608]
[1763167345846,0.06941452,95000.0,94999.0,0.3608]
[1763167346047,0.18679671,95000.0,94999.0,0.3608]
[1763167346751,0.18779671,95000.0,94999.0,0.3608]
[1763167349152,0.16470022,95000.0,94999.0,0.3608]
[1763167349549,0.16370022,95000.0,94999.0,0.3608]
[1763167349749,0.16470022,95000.0,94999.0,0.3608]
[1763167350151,0.16370022,95000.0,94999.0,0.3608]
[1763167350353,0.16470022,95000.0,94999.0,0.3608]
[1763167351342,0.04312,94999.0,94996.0,0.01204573]
[1763167351548,0.06625017,94999.0,94996.0,0.01204573]
[1763167351847,0.18263439,94999.0,94996.0,0.01204573]
[1763167352647,0.18263439,94999.0,94991.0,0.46328198]
[1763167353350,0.18263439,94999.0,94996.0,0.01206693]
[1763167353553,0.18263439,94999.0,94991.0,0.46328198]
[1763167354545,0.18263439,94999.0,94973.0,0.05629453]
[1763167354546,0.05615,94992.0,94973.0,0.05629453]
[1763167354744,0.05615,94992.0,94960.0,0.0001312]
[1763167354745,0.04312,94976.0,94975.0,0.04968806]
[1763167355053,0.06625701,94976.0,94975.0,0.00473806]
[1763167355852,0.06625701,94976.0,94975.0,0.00573806]
[1763167356258,0.06625701,94976.0,94975.0,0.15606846]
[1763167356455,0.04312,94976.0,94975.0,0.15606846]
[1763167356759,0.04312,94976.0,94975.0,0.05068806]
[1763167357153,0.04212,94976.0,94975.0,0.05068806]
[1763167357854,0.04212,94976.0,94968.0,0.8269875]
[1763167357855,0.04312,94967.0,94966.0,0.00026325]
[1763167358058,0.42602258,94967.0,94966.0,0.00026325]
[1763167358256,0.53690084,94967.0,94966.0,0.00026325]
[1763167358452,0.04312,94961.0,94960.0,0.0001312]
[1763167358653,0.06622258,94961.0,94960.0,0.0001312]
[1763167358955,0.18355826,94961.0,94960.0,0.0001312]
[1763167359159,0.18355826,94961.0,94952.0,0.04495]
[1763167359160,0.04312,94953.0,94952.0,0.04495]
[1763167359557,0.16145568,94953.0,94952.0,0.04495]
[1763167359754,0.16045568,94953.0,94952.0,0.04495]
[1763167360063,0.1605749,94953.0,94952.0,0.05734749]
[1763167360258,0.1605749,94953.0,94952.0,0.05834749]
[1763167360757,0.1595749,94953.0,94952.0,0.05834749]
[1763167361364,0.1595749,94953.0,94952.0,0.05934749]
[1763167361562,0.1595749,94953.0,94952.0,0.03745749]
[1763167361763,0.1595749,94953.0,94952.0,0.002]
[1763167363375,0.1595749,94953.0,94952.0,0.02506]
[1763167363665,0.1595749,94953.0,94952.0,0.002]
[1763167366971,0.1595749,94953.0,94952.0,0.04695]
[1763167369066,0.1595749,94953.0,94952.0,0.02506]
[1763167369461,0.1595749,94953.0,94952.0,0.002]
[1763167369858,0.1595749,94953.0,94952.0,0.02506]
[1763167370260,0.1595749,94953.0,94952.0,0.04695]
[1763167373068,0.1595749,94953.0,94952.0,0.04595]
[1763167373264,0.1595749,94953.0,94952.0,0.04695]
[1763167373465,0.1184549,94953.0,94952.0,0.1523559]
[1763167373671,0.00011922,94953.0,94952.0,0.5131559]
[1763167373866,0.00011922,94953.0,94952.0,0.5121559]
[1763167374074,0.00015794,94962.0,94961.0,0.1503459]
[1763167374269,0.05615,94980.0,94979.0,0.04495]
[1763167374464,0.05834803,94980.0,94979.0,0.04495]
[1763167374670,0.04531803,94980.0,94979.0,0.04495]
[1763167375368,0.04631803,94980.0,94979.0,0.04495]
[1763167379375,0.04631803,94980.0,94979.0,0.40575]
[1763167380468,0.04531803,94980.0,94979.0,0.40575]
[1763167380676,0.04631803,94980.0,94979.0,0.40575]
[1763167381578,0.04531803,94980.0,94979.0,0.40575]
[1763167381875,0.04631803,94980.0,94979.0,0.40575]
[1763167382179,0.04531803,94980.0,94979.0,0.40575]
[1763167382374,0.02467803,94980.0,94979.0,0.5111259]
[1763167382581,0.00319803,94980.0,94979.0,0.5111259]
[1763167382971,0.001,94980.0,94979.0,0.5111259]
[1763167383388,0.00015794,94989.0,94988.0,0.1510959]
[1763167383685,0.00015794,94989.0,94988.0,0.5118959]
[1763167384879,0.04348314,95006.0,95005.0,0.04573]
[1763167385081,0.06634104,95006.0,95005.0,0.04573]
[1763167385278,0.15508702,95006.0,95005.0,0.04573]
[1763167385473,0.06632981,95006.0,95005.0,0.023]
[1763167385679,0.06632981,95006.0,95005.0,0.04573]
[1763167386277,0.06632981,95006.0,95005.0,0.05754007]
[1763167386875,0.04322,95002.0,95001.0,0.3608]
[1763167387078,0.12120425,95006.0,95005.0,0.1510771]
[1763167387285,0.00026314,95006.0,95005.0,0.1510771]
[1763167387590,0.00126314,95006.0,95005.0,0.1510771]
[1763167387784,0.02300314,95006.0,95005.0,0.1510771]
[1763167388081,0.02200314,95006.0,95005.0,0.1510771]
[1763167389079,0.00026314,95006.0,95005.0,0.1510771]
[1763167390883,0.02200314,95006.0,95005.0,0.1510771]
[1763167391071,0.04533314,95006.0,95005.0,0.1510771]
[1763167391278,0.04533314,95006.0,95005.0,0.04573]
[1763167391571,0.04541,95002.0,95001.0,0.41705155]
[1763167392184,0.04541,95002.0,95001.0,0.37237155]
[1763167392372,0.04541,95002.0,95001.0,0.41705155]
[1763167392974,0.00026314,95006.0,95005.0,0.04468]
[1763167393481,0.01349,95032.0,95014.0,0.04468]
[1763167393689,0.3608,95022.0,95014.0,0.5108171]
[1763167393883,0.01349,95032.0,95014.0,0.5108171]
[1763167394579,0.04541,95025.0,95024.0,0.1500054]
[1763167394987,0.16569215,95025.0,95024.0,0.1500054]
[1763167395687,0.04541,95025.0,95024.0,0.1500054]
[1763167397091,0.04641,95025.0,95024.0,0.1500054]
[1763167397484,0.04541,95025.0,95024.0,0.1500054]
[1763167398089,0.04541,95025.0,95024.0,0.04468]
[1763167398882,0.0589,95032.0,95031.0,0.04468]
[1763167399281,0.17489377,95032.0,95031.0,0.04468]
[1763167400485,0.17589377,95032.0,95031.0,0.02256]
[1763167401181,0.17689377,95032.0,95031.0,0.02256]
[1763167401588,0.19967856,95032.0,95031.0,0.02256]
[1763167402086,0.19967856,95032.0,95031.0,0.04468]
[1763167403281,0.04541,95031.0,95030.0,0.36153267]
[1763167403483,0.06819479,95031.0,95030.0,0.38409267]
[1763167403685,0.18975971,95031.0,95030.0,0.38409267]
[1763167404182,0.18975971,95031.0,95030.0,0.40621267]
[1763167404381,0.19075971,95031.0,95030.0,0.40621267]
[1763167404783,0.19175971,95031.0,95030.0,0.40621267]
[1763167405389,0.19178502,95031.0,95030.0,0.40621267]
[1763167405591,0.19178502,95031.0,95030.0,0.36153267]
[1763167405890,0.19178502,95031.0,95030.0,0.38409267]
[1763167406092,0.19178502,95031.0,95030.0,0.40621267]
[1763167406282,0.14637502,95031.0,95030.0,0.51153207]
[1763167406488,0.00026303,95046.0,95044.0,0.04468]
[1763167406489,0.02208,95045.0,95044.0,0.04468]
[1763167406688,0.00026303,95046.0,95045.0,0.1499827]
[1763167407589,0.00026303,95046.0,95045.0,0.04468]
[1763167407782,0.04404303,95046.0,95045.0,0.02256]
[1763167407983,0.16273104,95046.0,95045.0,0.04483]
[1763167408386,0.04704303,95046.0,95045.0,0.04483]
[1763167408794,0.04604303,95046.0,95045.0,0.04483]
[1763167408993,0.1626974,95046.0,95045.0,0.04483]
[1763167409289,0.1626974,95046.0,95042.0,0.3608]
[1763167409290,0.04344,95043.0,95042.0,0.40422]
[1763167410785,0.04444,95043.0,95042.0,0.40422]
[1763167410991,0.15478268,95043.0,95042.0,0.3608]
[1763167412279,0.15378268,95043.0,95042.0,0.40422]
[1763167412484,0.15478268,95043.0,95042.0,0.40422]
[1763167412893,0.15378268,95043.0,95042.0,0.40422]
[1763167413090,0.15478268,95043.0,95042.0,0.40422]
[1763167413292,0.001,95043.0,95042.0,0.40422]
[1763167413679,0.00026303,95046.0,95045.0,0.04342]
[1763167417496,0.3608,95063.0,95054.0,0.04342]
[1763167417699,0.3608,95063.0,95054.0,0.40422]
[1763167419591,0.005,95076.0,95054.0,0.40422]
[1763167419793,0.05693,95072.0,95071.0,0.04342]
[1763167419996,0.0661742,95072.0,95071.0,0.04342]
[1763167420298,0.1875069,95072.0,95071.0,0.04342]
[1763167420600,0.2003769,95072.0,95071.0,0.0550168]
[1763167421095,0.0237342,95072.0,95071.0,0.0550168]
[1763167421697,0.0247342,95072.0,95071.0,0.0550168]
[1763167422085,0.0810442,95072.0,95071.0,0.0550168]
[1763167422292,0.04544,95072.0,95071.0,0.0550168]
[1763167423198,0.05831,95072.0,95071.0,0.0550168]
[1763167424187,0.04344,95071.0,95070.0,0.00073267]
[1763167424387,0.04344,95063.0,95062.0,0.00015785]
[1763167424588,0.42698578,95063.0,95062.0,0.00015785]
[1763167424792,0.54507743,95063.0,95062.0,0.00015785]
[1763167425794,0.54507743,95063.0,95045.0,0.3608]
[1763167425795,0.04344,95046.0,95045.0,0.3608]
[1763167425999,0.04344,95046.0,95040.0,0.12799279]
[1763167426000,0.04344,95041.0,95040.0,0.12872546]
[1763167426297,0.04344,95041.0,95040.0,0.00073267]
[1763167426298,0.1545777,95041.0,95040.0,0.00073267]
[1763167426701,0.1773342,95041.0,95040.0,0.00073267]
[1763167427103,0.04344,95032.0,95031.0,0.00015785]
[1763167427399,0.16208517,95032.0,95031.0,0.00015785]
[1763167427699,0.04344,95025.0,95024.0,0.3608]
[1763167427900,0.04344,95025.0,95020.0,0.12799279]
[1763167427901,0.04344,95021.0,95020.0,0.17214546]
[1763167428106,0.06620148,95021.0,95020.0,0.17214546]
[1763167429605,0.04444,95021.0,95020.0,0.00073267]
[1763167429998,0.04444,95021.0,95016.0,0.3608]
[1763167429999,0.04344,95017.0,95016.0,0.3608]
[1763167430409,0.15673853,95017.0,95016.0,0.3608]
[1763167431303,0.04344,95012.0,95011.0,0.12815064]
[1763167431497,0.04344,95012.0,95011.0,0.02130785]
[1763167432101,0.04344,95012.0,95011.0,0.04357785]
[1763167432495,0.04344,95012.0,95011.0,0.14891825]
[1763167432701,0.04344,95012.0,95011.0,0.50971825]
[1763167433314,0.04344,95012.0,95011.0,0.40437785]
[1763167434103,0.02174,95022.0,95021.0,0.04342]
[1763167434707,0.04359785,95030.0,95029.0,0.04342]
[1763167434898,0.06853178,95030.0,95029.0,0.04342]
[1763167435102,0.19025102,95030.0,95029.0,0.04342]
[1763167435704,0.19025102,95030.0,95020.0,0.12799279]
[1763167436003,0.04344,95021.0,95020.0,0.17214546]
[1763167436205,0.04344,95021.0,95020.0,0.04415267]
[1763167440700,0.04344,95021.0,95020.0,0.00073267]
[1763167440906,0.04344,95021.0,95020.0,0.02265267]
[1763167441409,0.16222155,95021.0,95020.0,0.02265267]
[1763167442011,0.16222155,95021.0,95020.0,0.04530267]
[1763167442212,0.16222155,95021.0,95020.0,0.00073267]
[1763167442914,0.16222155,95021.0,95020.0,0.02265267]
[1763167443105,0.16222155,95021.0,95020.0,0.00073267]
[1763167443306,0.04317,95012.0,95011.0,0.53352064]
[1763167443506,0.04317,95012.0,95011.0,0.40552785]
[1763167444600,0.02182,95012.0,95011.0,0.40552785]
[1763167445001,0.05604,95022.0,95021.0,0.04457]
[1763167445202,0.38262,95028.0,95027.0,0.04457]
[1763167445405,0.38262,95028.0,95025.0,0.1053241]
[1763167445406,0.00235588,95030.0,95029.0,0.04457]
[1763167445602,0.04317,95022.0,95021.0,0.40537]